{"text_format":"1","workbook":"xlsx","n_sheets":11,"sheets":["EKO1","EKO2","EKO3","EKO4 ","EKO5","EKO 6","EKO7","EKO8","EKO9","OGRAJE","rekapitulacija"],"not_rendered":{"charts":0,"images":0,"macros":0,"external_links":0,"defined_names":0,"comments":0,"pivot_tables":0},"unopened":[],"bounds":{"document_bytes":16777216,"sheet_cells":100000,"rows_first":2000,"rows_last":500,"rows_between":2000,"halvings":0,"cell_chars":16384,"cell_head_chars":4096},"cells_cut":0,"cells_raw":0,"read":"whole","date_system":"1900"}

{"sheet":"EKO1","index":0,"n_rows":83,"n_cols":5,"rows_kept":83,"cut":false,"hidden":false,"merged":[]}
[null,"EKOLOŠKI OTOK 1"]
[null,null,"količina","cena za enoto","skupaj cena"]
[1,"Zakoličba parcelnih mej in priprava situacije"]
[null,"kos",1,null,{"$f":"SUM(C4*D4)","v":0}]
[]
[2,"Zakoličba objekta - postavitev profilov"]
[null,"kos",4,null,{"$f":"SUM(C7*D7)","v":0}]
[]
[3,"Široki izkop v terenu III. - IV. ktg., globine cca 50 cm "]
[null,"m3",6,null,{"$f":"SUM(C10*D10)","v":0}]
[]
[4,"Zasip objekta z materialom od izkopa"]
[null,"m3",3,null,{"$f":"SUM(C13*D13)","v":0}]
[]
[5,"Nakladanje odvišnega materiala in odvoz na deponijo, komplet z vsemi stroški deponiranja"]
[null,"m3",3,null,{"$f":"SUM(C16*D16)","v":0}]
[]
[6,"Ročno planiranje in utrjevanje dna širokega izkopa pred nasipom tamponskega materiala"]
[null,"m2",30,null,{"$f":"SUM(C19*D19)","v":0}]
[]
[7,"Dobava in ročno vgrajevanje tamponskega materiala pod betonsko ploščoin dostopno pot, v debelini 20 cm"]
[null,"m3",6,null,{"$f":"SUM(C22*D22)","v":0}]
[]
[8,"Izdelava opaža roba ab plošče in čela ab zidov"]
[null,"m1",15.4,null,{"$f":"SUM(C25*D25)","v":0}]
[]
[9,"Izdelava opaža betonskega zidu, viden beton"]
[null,"m2",20,null,{"$f":"SUM(C28*D28)","v":0}]
[]
[10,"Dobava in vgraditev lesenih letvic dim. 7 / 6 cm, v opaž zidu pred betoniranjem"]
[null,"m1",12,null,{"$f":"SUM(C31*D31)","v":0}]
[11,"Dobava in ročno vgrajevanje vidnega betona v betonski temelj in talno ploščo ter zid in podložni beton. "]
[null,"m3",5.3,null,{"$f":"D33*C33","v":0}]
[12,"Dobava in ročno vgrajevanje armature v zid in ploščo (palice + mreže)"]
[null,"kg",360.4,null,{"$f":"D35*C35","v":0}]
[]
[13,"Dobava in vgradnja robnikov komplet z vsemi deli"]
[null,"m",15,null,{"$f":"SUM(C38*D38)","v":0}]
[]
[14,"Izdelava  finega planuma pred polaganjem asfalta"]
[null,"m2",10,null,{"$f":"SUM(C41*D41)","v":0}]
[]
[15,"Rušenje in o drez asfalta, čiščenje in premaz robov, odvoz ruševin do pooblaščenega zbiralca odpadkov"]
[null,"m2",10,null,{"$f":"SUM(C44*D44)","v":0}]
[]
[16,"Dobava in polaganje bitumiziranega betona AC 11 surf B 50/70,  v debelini 6 cm "]
[null,"m2",10,null,{"$f":"SUM(C47*D47)","v":0}]
[]
[17,"Dobava in vgraditev PVC cevi fi 160 polno obetonirane iz kinete do KANALIZACIJE."]
[null,"m1",4,null,{"$f":"SUM(C50*D50)","v":0}]
[]
[18,"Dobava in montaža vmesne varovalne ograje iz okrogle varovalne cevi fi 32 dolž. 0,85m in višine 0,85m pritrjene v ploščo."]
[null,"m1",11,null,{"$f":"SUM(C53*D53)","v":0}]
[]
[19,"Dobava in montaža varovalna pocinkane verige- lad. genovese 6,0  dolžine 3,0 m s pritrjevanjem"]
[null,"kos",4,null,{"$f":"SUM(C56*D56)","v":0}]
[]
[20,"Dobava in vgrajevanje mreže Živex tip BEKAERT Nylofor 3D, višine  1030 mm, komplet s stebrički in ostalim pritrdilnim materialom"]
[null,"m1",12,null,{"$f":"SUM(C59*D59)","v":0}]
[]
[21,"Čiščenje grmovja s sekanjem in spravilom"]
[null,"m2",2,null,{"$f":"SUM(C62*D62)","v":0}]
[]
[22,"Posnetek terena in vnos v kataster"]
[null,"kos",1,null,{"$f":"SUM(C65*D65)","v":0}]
[]
["23.","Rušenje obstoječega ekološkega otoka z odvozmo ruševin pooblaščenemu zbiralcu gradbenih odpadkov"]
[null,"m3",6,null,{"$f":"SUM(C68*D68)","v":0}]
[]
["24.","Izdelava jaška iz betonske cevi fi 600, globine 2,0 m in dobavo in vgradnjo betonskega pokrova,komplet z izkopom in zasipom."]
[null,"kos",1,null,{"$f":"SUM(C71*D71)","v":0}]
[]
[]
["25.","Dobava in vgrajevanje kinete za odvodnjavanje hauraton z ltž rešetkami za težki promet, komplet z izkopom in polnim obbetoniranjem."]
[null,"m1",4,null,{"$f":"SUM(C75*D75)","v":0}]
[]
["26.","Dobava in polaganje bitumiziranega betona AC 11 surf B 50/70,  v debelini 6 cm "]
[null,"m2",10,null,{"$f":"SUM(C78*D78)","v":0}]
[]
["27.","Požaganje drevesa fi 50,z izkopom korenine,razžagovanjem in odvozom na deponijo."]
[null,"kom",1,null,{"$f":"SUM(C81*D81)","v":0}]
[]
[null,"SKUPAJ",null,null,{"$f":"SUM(E4:E82)","v":0}]

{"sheet":"EKO2","index":1,"n_rows":73,"n_cols":5,"rows_kept":73,"cut":false,"hidden":false,"merged":[]}
[null,"EKOLOŠKI OTOK 2 "]
[null,null,"količina","cena za enoto","skupaj cena"]
[1,"Zakoličba parcelnih mej in priprava situacije"]
[null,"kos",1,null,{"$f":"SUM(C4*D4)","v":0}]
[]
[2,"Zakoličba objekta - postavitev profilov"]
[null,"kos",11,null,{"$f":"SUM(C7*D7)","v":0}]
[]
[3,"Široki izkop v terenu III. - IV. ktg., globine cca 50 cm "]
[null,"m3",38,null,{"$f":"SUM(C10*D10)","v":0}]
[]
[4,"Zasip objekta z materialom od izkopa"]
[null,"m3",10.6,null,{"$f":"SUM(C13*D13)","v":0}]
[]
[5,"Nakladanje odvišnega materiala in odvoz na deponijo, komplet z vsemi stroški deponiranja"]
[null,"m3",70.400000000000006,null,{"$f":"SUM(C16*D16)","v":0}]
[]
[6,"Ročno planiranje in utrjevanje dna širokega izkopa pred nasipom tamponskega materiala"]
[null,"m2",146,null,{"$f":"SUM(C19*D19)","v":0}]
[]
[7,"Dobava in ročno vgrajevanje tamponskega materiala pod betonsko ploščoin dostopno pot, v debelini 20 cm"]
[null,"m3",44,null,{"$f":"SUM(C22*D22)","v":0}]
[]
[8,"Izdelava opaža roba ab plošče in čela ab zidov"]
[null,"m1",25.4,null,{"$f":"SUM(C25*D25)","v":0}]
[]
["2018-01-08","Izdelava dvostranskega opaža zidov"]
[null,"m2",30,null,{"$f":"+C28*D28","v":0}]
[]
[9,"Dobava in ročno vgrajevanje vidnega betona v betonski temelj in talno ploščo in podložni beton. "]
[null,"m3",12,null,{"$f":"D31*C31","v":0}]
[10,"Dobava in ročno vgrajevanje armature v  ploščo ter zidove (palice + mreže)"]
[null,"kg",750,null,{"$f":"D33*C33","v":0}]
[]
[11,"Izdelava  finega planuma pred polaganjem asfalta"]
[null,"m2",110,null,{"$f":"SUM(C36*D36)","v":0}]
[]
[12,"Odrez asfalta, čiščenje in premaz robov"]
[null,"m",14,null,{"$f":"SUM(C39*D39)","v":0}]
[]
[13,"Dobava in polaganje bitumiziranega betona AC 11 surf B 50/70,  v debelini 4 cm "]
[null,"m2",110,null,{"$f":"SUM(C42*D42)","v":0}]
[]
[14,"Dobava in montaža vmesne varovalne ograje iz okrogle varovalne cevi fi 32 dolž. 0,85m in višine 0,85m pritrjene v ploščo."]
[null,"m1",12.1,null,{"$f":"SUM(C45*D45)","v":0}]
[]
[15,"Dobava in montaža varovalna pocinkane verige- lad. genovese 6,0  dolžine 3,0 m s pritrjevanjem"]
[null,"kos",9.3000000000000007,null,{"$f":"SUM(C48*D48)","v":0}]
[]
[16,"Čiščenje grmovja s sekanjem in spravilom"]
[null,"m2",10,null,{"$f":"SUM(C51*D51)","v":0}]
[]
[17,"Posnetek terena in vnos v kataster"]
[null,"kos",1,null,{"$f":"SUM(C54*D54)","v":0}]
[]
[18,"Izkop v terenu5-6.kategorije z uporabo pikadorja-nižanje obstoječe gozdne ceste in priklopa na regionalno cesto."]
[null,"m3",43,null,{"$f":"SUM(C57*D57)","v":0}]
[]
[19,"Dobava in polaganje bitumiziranega betona AC 11 surf B 50/70,  v debelini 6 cm "]
[null,"m2",110,null,{"$f":"SUM(C60*D60)","v":0}]
[20,"Dobava in vgrajevanje cestne JVO ograje, komplet z odbojniki in stebrički."]
[null,"m1",23,null,{"$f":"SUM(C62*D62)","v":0}]
[]
[21,"Dobava in vgrajevanje vkopne zaključnice"]
[null,"kom",1,null,{"$f":"SUM(C65*D65)","v":0}]
[]
[22,"Dobava in vgrajevanje F zaključnice"]
[null,"kom",1,null,{"$f":"SUM(C68*D68)","v":0}]
[]
[23,"Zaspi za zidovi z zasipnim materialom (skupaj z dobavo)"]
[null,"m3",15,null,{"$f":"+C71*D71","v":0}]
[]
[null,"SKUPAJ",null,null,{"$f":"SUM(E4:E72)","v":0}]

{"sheet":"EKO3","index":2,"n_rows":69,"n_cols":5,"rows_kept":69,"cut":false,"hidden":false,"merged":[]}
[null,"EKOLOŠKI OTOK -3"]
[null,null,"količina","cena za enoto","skupaj cena"]
[1,"Zakoličba parcelnih mej in priprava situacije"]
[null,"kos",1,null,{"$f":"SUM(C4*D4)","v":0}]
[]
[2,"Zakoličba objekta - postavitev profilov"]
[null,"kos",8,null,{"$f":"SUM(C7*D7)","v":0}]
[]
[3,"Široki izkop v terenu III. - IV. ktg., globine cca 50 cm "]
[null,"m3",24,null,{"$f":"SUM(C10*D10)","v":0}]
[]
[4,"Zasip objekta z materialom od izkopa"]
[null,"m3",10,null,{"$f":"SUM(C13*D13)","v":0}]
[]
[5,"Nakladanje odvišnega materiala in odvoz na deponijo, komplet z vsemi stroški deponiranja"]
[null,"m3",20,null,{"$f":"SUM(C16*D16)","v":0}]
[]
[6,"Ročno planiranje in utrjevanje dna širokega izkopa pred nasipom tamponskega materiala"]
[null,"m2",{"$f":"9*2","v":18},null,{"$f":"SUM(C19*D19)","v":0}]
[]
[7,"Dobava in ročno vgrajevanje tamponskega materiala pod betonsko ploščo in dostopno pot, v debelini 20 cm"]
[null,"m3",5.6,null,{"$f":"SUM(C22*D22)","v":0}]
[]
[8,"Izdelava opaža roba ab plošče in čela ab zidov"]
[null,"m1",20,null,{"$f":"SUM(C25*D25)","v":0}]
[]
["8.1","Izdelava dvostranskega opaža zidov"]
[null,"m2",30,null,{"$f":"+C28*D28","v":0}]
[]
[9,"Dobava in ročno vgrajevanje vidnega betona v betonski temelj  talno ploščo, zidove in podložni beton. "]
[null,"m3",{"$f":"9*2*0.3+4","v":9.3999999999999986},null,{"$f":"D31*C31","v":0}]
[]
[10,"Dobava in ročno vgrajevanje armature v  ploščo ter zidove (palice + mreže)"]
[null,"kg",700,null,{"$f":"D34*C34","v":0}]
[]
[11,"Izdelava  finega planuma pred polaganjem asfalta"]
[null,"m2",20,null,{"$f":"SUM(C37*D37)","v":0}]
[]
[12,"Odrez asfalta, čiščenje in premaz robov, odvoz asfalta pooblaščenemu zbiralcu"]
[null,"m2",10,null,{"$f":"SUM(C40*D40)","v":0}]
[]
[13,"Dobava in polaganje bitumiziranega betona AC 11 surf B 50/70,  v debelini 6 cm "]
[null,"m2",10,null,{"$f":"SUM(C43*D43)","v":0}]
[]
[14,"Dobava in montaža vmesne varovalne ograje iz okrogle varovalne cevi fi 32 dolž. 0,85m in višine 0,85m pritrjene v ploščo."]
[null,"m1",8.5,null,{"$f":"SUM(C46*D46)","v":0}]
[]
[15,"Dobava in montaža varovalna pocinkane verige- lad. genovese 6,0  dolžine 3,0 m s pritrjevanjem"]
[null,"kos",1,null,{"$f":"SUM(C49*D49)","v":0}]
[]
[16,"Čiščenje grmovja s sekanjem in spravilom"]
[null,"m2",10,null,{"$f":"SUM(C52*D52)","v":0}]
[]
[17,"Posnetek terena in vnos v kataster"]
[null,"kos",1,null,{"$f":"SUM(C55*D55)","v":0}]
[]
[19,"Izdelava kanalizacije iz PE cevi SN4 fi 250 z obbetoniranjem."]
[null,"m1",60,null,{"$f":"SUM(C58*D58)","v":0}]
[]
[20,"Izdelava jaška iz betonske cevi fi 60 globine 1-1,5m mter LTŽ rešetke 400/400."]
[null,"kom",4,null,{"$f":"SUM(C61*D61)","v":0}]
[]
[21,"Izdelava jaška iz betonske cevi fi 60 globine 1-1,5m ter LTŽ pokrova fi 600,40 kN."]
[null,"kom",1,null,{"$f":"SUM(C64*D64)","v":0}]
[]
[22,"Zasip objekta z materialom od izkopa"]
[null,"m2",200,null,{"$f":"C67*D67","v":0}]
[]
[null,"SKUPAJ",null,null,{"$f":"SUM(E4:E68)","v":0}]

{"sheet":"EKO4 ","index":3,"n_rows":76,"n_cols":5,"rows_kept":76,"cut":false,"hidden":false,"merged":[]}
[null,"EKOLOŠKI OTOK  4"]
[null,null,"količina","cena za enoto","skupaj cena"]
[1,"Zakoličba parcelnih mej in priprava situacije"]
[null,"kos",1,null,{"$f":"SUM(C4*D4)","v":0}]
[]
[2,"Zakoličba objekta - postavitev profilov"]
[null,"kos",12,null,{"$f":"SUM(C7*D7)","v":0}]
[]
[3,"Široki izkop v terenu III. - IV. ktg., globine cca 50 cm "]
[null,"m3",72,null,{"$f":"SUM(C10*D10)","v":0}]
[]
[4,"Zasip objekta z materialom od izkopa"]
[null,"m3",15,null,{"$f":"SUM(C13*D13)","v":0}]
[]
[5,"Nakladanje odvišnega materiala in odvoz na deponijo, komplet z vsemi stroški deponiranja"]
[null,"m3",57,null,{"$f":"SUM(C16*D16)","v":0}]
[]
[6,"Ročno planiranje in utrjevanje dna širokega izkopa pred nasipom tamponskega materiala"]
[null,"m2",44.3,null,{"$f":"SUM(C19*D19)","v":0}]
[]
[7,"Dobava in ročno vgrajevanje tamponskega materiala pod betonsko ploščoin dostopno pot, v debelini 20 cm"]
[null,"m3",42,null,{"$f":"SUM(C22*D22)","v":0}]
[]
[8,"Izdelava opaža roba ab plošče in čela ab zidov"]
[null,"m1",18,null,{"$f":"SUM(C25*D25)","v":0}]
[]
[9,"Izdelava opaža betonskega zidu, viden beton"]
[null,"m2",30,null,{"$f":"SUM(C28*D28)","v":0}]
[]
[10,"Dobava in vgraditev lesenih letvic dim. 7 / 6 cm, v opaž zidu pred betoniranjem"]
[null,"m1",0,null,{"$f":"SUM(C31*D31)","v":0}]
[11,"Dobava in ročno vgrajevanje vidnega betona v betonski temelj in talno ploščo ter zid in podložni beton. "]
[null,"m3",10,null,{"$f":"D33*C33","v":0}]
[12,"Dobava in ročno vgrajevanje armature v zid in ploščo (palice + mreže)"]
[null,"kg",750,null,{"$f":"D35*C35","v":0}]
[]
[13,"Dobava in vgradnja robnikov komplet z vsemi deli"]
[null,"m",4,null,{"$f":"SUM(C38*D38)","v":0}]
[]
[14,"Izdelava  finega planuma pred polaganjem asfalta"]
[null,"m2",31,null,{"$f":"SUM(C41*D41)","v":0}]
[]
[15,"Odrez asfalta, čiščenje in premaz robov ter odvoz ruševin pooblaščenemu zbiralcu odpadkov"]
[null,"m2",5,null,{"$f":"SUM(C44*D44)","v":0}]
[]
[16,"Dobava in polaganje bitumiziranega betona AC 11 surf B 50/70,  v debelini 6 cm "]
[null,"m2",15,null,{"$f":"SUM(C47*D47)","v":0}]
[]
[17,"Dobava in vgraditev PVC cevi fi 160 polno obetonirane iz požiralnika do prepusta"]
[null,"m1",2,null,{"$f":"SUM(C50*D50)","v":0}]
[]
[18,"Dobava in montaža varovalna pocinkane verige- lad. genovese 6,0  dolžine 3,0 m s pritrjevanjem"]
[null,"kos",1,null,{"$f":"SUM(C53*D53)","v":0}]
[]
[19,"Čiščenje grmovja z sekanjem in spravilom"]
[null,"m2",14.8,null,{"$f":"SUM(C56*D56)","v":0}]
[]
[18,"Zasipanje betonskih cevi z nasipnim materialom, skupaj z dobavo materiala"]
[null,"m3",30,null,{"$f":"SUM(C59*D59)","v":0}]
[]
[19,"Posnetek terena in vnos v kataster"]
[null,"kos",1,null,{"$f":"SUM(C62*D62)","v":0}]
[]
[20,"Dobava in vgradnja polno obbetonirane betonske cevi DN 600"]
[null,"m",15,null,{"$f":"C65*D65","v":0}]
[]
[21,"Dobava in vgrajevanje peskolova iz betonske cevi fi 50 z ltž rešetko za težki promet ter vsemi ostalimi deli."]
[null,"kos",1,null,{"$f":"SUM(C68*D68)","v":0}]
[]
[22,"Čiščenje grmovja  ter dreves do fi 20 cm z odvozom na deponijo"]
[null,"m2",30,null,{"$f":"SUM(C71*D71)","v":0}]
[]
[23,"Dobava in vgrajevanje mreže Živex tip BEKAERT Nylofor 3D, višine  1030 mm, komplet s stebrički in ostalim pritrdilnim materialom"]
[null,"m1",12,null,{"$f":"SUM(C74*D74)","v":0}]
[]
[null,"SKUPAJ",null,null,{"$f":"SUM(E4:E75)","v":0}]

{"sheet":"EKO5","index":4,"n_rows":55,"n_cols":5,"rows_kept":55,"cut":false,"hidden":false,"merged":[]}
[null,"EKOLOŠKI OTOK 5 - GABIONI"]
[null,null,"količina","cena za enoto","skupaj cena"]
[1,"Zakoličba parcelnih mej in priprava situacije"]
[null,"kos",1,null,{"$f":"SUM(C4*D4)","v":0}]
[]
[2,"Zakoličba objekta - postavitev profilov"]
[null,"kos",8,null,{"$f":"SUM(C7*D7)","v":0}]
[]
[3,"Široki izkop v terenu III. - IV. ktg., globine cca 50 cm "]
[null,"m3",24,null,{"$f":"SUM(C10*D10)","v":0}]
[]
[4,"Zasip objekta z materialom od izkopa"]
[null,"m3",10,null,{"$f":"SUM(C13*D13)","v":0}]
[]
[5,"Nakladanje odvišnega materiala in odvoz na deponijo, komplet z vsemi stroški deponiranja"]
[null,"m3",20,null,{"$f":"SUM(C16*D16)","v":0}]
[]
[6,"Ročno planiranje in utrjevanje dna širokega izkopa pred nasipom tamponskega materiala"]
[null,"m2",{"$f":"9*2","v":18},null,{"$f":"SUM(C19*D19)","v":0}]
[]
[7,"Dobava in ročno vgrajevanje tamponskega materiala pod betonsko ploščo in dostopno pot, v debelini 20 cm"]
[null,"m3",5.6,null,{"$f":"SUM(C22*D22)","v":0}]
[]
[8,"Izdelava opaža roba ab plošče in čela ab zidov"]
[null,"m1",15,null,{"$f":"SUM(C25*D25)","v":0}]
[9,"Dobava in ročno vgrajevanje vidnega betona v betonski temelj in talno ploščo in podložni beton. "]
[null,"m3",{"$f":"9*2*0.3","v":5.3999999999999995},null,{"$f":"D27*C27","v":0}]
[10,"Dobava in ročno vgrajevanje armature v  ploščo (palice + mreže)"]
[null,"kg",500,null,{"$f":"D29*C29","v":0}]
[]
[11,"Izdelava  finega planuma pred polaganjem asfalta"]
[null,"m2",20,null,{"$f":"SUM(C32*D32)","v":0}]
[]
[12,"Odrez asfalta, čiščenje in premaz robov, odvoz asfalta pooblaščenemu zbiralcu"]
[null,"m2",10,null,{"$f":"SUM(C35*D35)","v":0}]
[]
[13,"Dobava in polaganje bitumiziranega betona AC 11 surf B 50/70,  v debelini 6 cm "]
[null,"m2",5,null,{"$f":"SUM(C38*D38)","v":0}]
[]
[14,"Dobava in montaža vmesne varovalne ograje iz okrogle varovalne cevi fi 32 dolž. 0,85m in višine 0,85m pritrjene v ploščo."]
[null,"m1",14,null,{"$f":"SUM(C41*D41)","v":0}]
[]
[15,"Dobava in montaža varovalna pocinkane verige- lad. genovese 6,0  dolžine 6,0 m s pritrjevanjem"]
[null,"kos",2,null,{"$f":"SUM(C44*D44)","v":0}]
[]
[16,"Čiščenje grmovja s sekanjem in spravilom"]
[null,"m2",1,null,{"$f":"SUM(C47*D47)","v":0}]
[]
[17,"Posnetek terena in vnos v kataster"]
[null,"kos",1,null,{"$f":"SUM(C50*D50)","v":0}]
[]
[18,"Postavitev gabionov višine 1,5 m komplet s stebri, mrežo in polnjenjem s kamenjem"]
[null,"m",18,null,{"$f":"SUM(C53*D53)","v":0}]
[]
[null,"SKUPAJ",null,null,{"$f":"SUM(E4:E54)","v":0}]

{"sheet":"EKO 6","index":5,"n_rows":55,"n_cols":5,"rows_kept":55,"cut":false,"hidden":false,"merged":[]}
[null,"EKOLOŠKI OTOK 6 "]
[null,null,"količina","cena za enoto","skupaj cena"]
[1,"Zakoličba parcelnih mej in priprava situacije"]
[null,"kos",1,null,{"$f":"SUM(C4*D4)","v":0}]
[]
[2,"Zakoličba objekta - postavitev profilov"]
[null,"kos",4,null,{"$f":"SUM(C7*D7)","v":0}]
[]
[3,"Široki izkop v terenu III. - IV. ktg., globine cca 50 cm "]
[null,"m3",18,null,{"$f":"SUM(C10*D10)","v":0}]
[]
[4,"Zasip objekta z materialom od izkopa"]
[null,"m3",2.5,null,{"$f":"SUM(C13*D13)","v":0}]
[]
[5,"Nakladanje odvišnega materiala in odvoz na deponijo, komplet z vsemi stroški deponiranja"]
[null,"m3",15.5,null,{"$f":"SUM(C16*D16)","v":0}]
[]
[6,"Ročno planiranje in utrjevanje dna širokega izkopa pred nasipom tamponskega materiala"]
[null,"m2",30,null,{"$f":"SUM(C19*D19)","v":0}]
[]
[7,"Dobava in ročno vgrajevanje tamponskega materiala pod betonsko ploščoin dostopno pot, v debelini 20 cm"]
[null,"m3",8,null,{"$f":"SUM(C22*D22)","v":0}]
[]
[8,"Izdelava opaža roba ab plošče in čela ab zidov"]
[null,"m1",26.2,null,{"$f":"SUM(C25*D25)","v":0}]
[9,"Dobava in ročno vgrajevanje vidnega betona v betonski temelj in talno ploščo in podložni beton. "]
[null,"m3",7.5,null,{"$f":"D27*C27","v":0}]
[10,"Dobava in ročno vgrajevanje armature v  ploščo (palice + mreže)"]
[null,"kg",510,null,{"$f":"D29*C29","v":0}]
[]
[11,"Izdelava  finega planuma pred polaganjem asfalta"]
[null,"m2",4,null,{"$f":"SUM(C32*D32)","v":0}]
[]
[12,"Odrez asfalta, čiščenje in premaz robov"]
[null,"m",26.2,null,{"$f":"SUM(C35*D35)","v":0}]
[]
[13,"Dobava in polaganje bitumiziranega betona AC 11 surf B 50/70,  v debelini 6 cm "]
[null,"m2",4,null,{"$f":"SUM(C38*D38)","v":0}]
[]
[14,"Dobava in montaža vmesne varovalne ograje iz okrogle varovalne cevi fi 32 dolž. 0,85m in višine 0,85m pritrjene v ploščo."]
[null,"m1",20.399999999999999,null,{"$f":"SUM(C41*D41)","v":0}]
[]
[15,"Dobava in montaža varovalna pocinkane verige- lad. genovese 6,0  dolžine 3,0 m s pritrjevanjem"]
[null,"kos",5,null,{"$f":"SUM(C44*D44)","v":0}]
[]
[16,"Čiščenje grmovja s sekanjem in spravilom"]
[null,"m2",1,null,{"$f":"SUM(C47*D47)","v":0}]
[]
[17,"Posnetek terena in vnos v kataster"]
[null,"kos",1,null,{"$f":"SUM(C50*D50)","v":0}]
[]
["18.","Rušenje asfalta in odvoz na deponijo do 15 km"]
[null,"m2",5,null,{"$f":"SUM(C53*D53)","v":0}]
[]
[null,"SKUPAJ",null,null,{"$f":"SUM(E4:E54)","v":0}]

{"sheet":"EKO7","index":6,"n_rows":76,"n_cols":5,"rows_kept":76,"cut":false,"hidden":false,"merged":[]}
[null,"EKOLOŠKI OTOK  7"]
[null,null,"količina","cena za enoto","skupaj cena"]
[1,"Zakoličba parcelnih mej in priprava situacije"]
[null,"kos",1,null,{"$f":"SUM(C4*D4)","v":0}]
[]
[2,"Zakoličba objekta - postavitev profilov"]
[null,"kos",12,null,{"$f":"SUM(C7*D7)","v":0}]
[]
[3,"Široki izkop v terenu III. - IV. ktg., globine cca 50 cm "]
[null,"m3",72,null,{"$f":"SUM(C10*D10)","v":0}]
[]
[4,"Zasip objekta z materialom od izkopa"]
[null,"m3",15,null,{"$f":"SUM(C13*D13)","v":0}]
[]
[5,"Nakladanje odvišnega materiala in odvoz na deponijo, komplet z vsemi stroški deponiranja"]
[null,"m3",57,null,{"$f":"SUM(C16*D16)","v":0}]
[]
[6,"Ročno planiranje in utrjevanje dna širokega izkopa pred nasipom tamponskega materiala"]
[null,"m2",44.3,null,{"$f":"SUM(C19*D19)","v":0}]
[]
[7,"Dobava in ročno vgrajevanje tamponskega materiala pod betonsko ploščoin dostopno pot, v debelini 20 cm"]
[null,"m3",42,null,{"$f":"SUM(C22*D22)","v":0}]
[]
[8,"Izdelava opaža roba ab plošče in čela ab zidov"]
[null,"m1",18,null,{"$f":"SUM(C25*D25)","v":0}]
[]
[9,"Izdelava opaža betonskega zidu, viden beton"]
[null,"m2",30,null,{"$f":"SUM(C28*D28)","v":0}]
[]
[10,"Dobava in vgraditev lesenih letvic dim. 7 / 6 cm, v opaž zidu pred betoniranjem"]
[null,"m1",0,null,{"$f":"SUM(C31*D31)","v":0}]
[11,"Dobava in ročno vgrajevanje vidnega betona v betonski temelj in talno ploščo ter zid in podložni beton. "]
[null,"m3",10,null,{"$f":"D33*C33","v":0}]
[12,"Dobava in ročno vgrajevanje armature v zid in ploščo (palice + mreže)"]
[null,"kg",750,null,{"$f":"D35*C35","v":0}]
[]
[13,"Dobava in vgradnja robnikov komplet z vsemi deli"]
[null,"m",4,null,{"$f":"SUM(C38*D38)","v":0}]
[]
[14,"Izdelava  finega planuma pred polaganjem asfalta"]
[null,"m2",31,null,{"$f":"SUM(C41*D41)","v":0}]
[]
[15,"Odrez asfalta, čiščenje in premaz robov ter odvoz ruševin pooblaščenemu zbiralcu odpadkov"]
[null,"m2",5,null,{"$f":"SUM(C44*D44)","v":0}]
[]
[16,"Dobava in polaganje bitumiziranega betona AC 11 surf B 50/70,  v debelini 6 cm "]
[null,"m2",15,null,{"$f":"SUM(C47*D47)","v":0}]
[]
[17,"Dobava in vgraditev PVC cevi fi 160 polno obetonirane iz požiralnika do prepusta"]
[null,"m1",2,null,{"$f":"SUM(C50*D50)","v":0}]
[]
[18,"Dobava in montaža varovalna pocinkane verige- lad. genovese 6,0  dolžine 3,0 m s pritrjevanjem"]
[null,"kos",1,null,{"$f":"SUM(C53*D53)","v":0}]
[]
[19,"Čiščenje grmovja z sekanjem in spravilom"]
[null,"m2",14.8,null,{"$f":"SUM(C56*D56)","v":0}]
[]
[18,"Zasipanje betonskih cevi z nasipnim materialom, skupaj z dobavo materiala"]
[null,"m3",30,null,{"$f":"SUM(C59*D59)","v":0}]
[]
[19,"Posnetek terena in vnos v kataster"]
[null,"kos",1,null,{"$f":"SUM(C62*D62)","v":0}]
[]
[20,"Dobava in vgradnja polno obbetonirane betonske cevi DN 600"]
[null,"m",15,null,{"$f":"C65*D65","v":0}]
[]
[21,"Dobava in vgrajevanje peskolova iz betonske cevi fi 50 z ltž rešetko za težki promet ter vsemi ostalimi deli."]
[null,"kos",1,null,{"$f":"SUM(C68*D68)","v":0}]
[]
[22,"Čiščenje grmovja  ter dreves do fi 20 cm z odvozom na deponijo"]
[null,"m2",30,null,{"$f":"SUM(C71*D71)","v":0}]
[]
[23,"Dobava in vgrajevanje mreže Živex tip BEKAERT Nylofor 3D, višine  1030 mm, komplet s stebrički in ostalim pritrdilnim materialom"]
[null,"m1",12,null,{"$f":"SUM(C74*D74)","v":0}]
[]
[null,"SKUPAJ",null,null,{"$f":"SUM(E4:E75)","v":0}]

{"sheet":"EKO8","index":7,"n_rows":58,"n_cols":5,"rows_kept":58,"cut":false,"hidden":false,"merged":[]}
[null,"EKOLOŠKI OTOK -8"]
[null,null,"količina","cena za enoto","skupaj cena"]
[1,"Zakoličba parcelnih mej in priprava situacije"]
[null,"kos",1,null,{"$f":"SUM(C4*D4)","v":0}]
[]
[2,"Zakoličba objekta - postavitev profilov"]
[null,"kos",8,null,{"$f":"SUM(C7*D7)","v":0}]
[]
[3,"Široki izkop v terenu III. - IV. ktg., globine cca 50 cm "]
[null,"m3",24,null,{"$f":"SUM(C10*D10)","v":0}]
[]
[4,"Zasip objekta z materialom od izkopa"]
[null,"m3",10,null,{"$f":"SUM(C13*D13)","v":0}]
[]
[5,"Nakladanje odvišnega materiala in odvoz na deponijo, komplet z vsemi stroški deponiranja"]
[null,"m3",20,null,{"$f":"SUM(C16*D16)","v":0}]
[]
[6,"Ročno planiranje in utrjevanje dna širokega izkopa pred nasipom tamponskega materiala"]
[null,"m2",{"$f":"9*2","v":18},null,{"$f":"SUM(C19*D19)","v":0}]
[]
[7,"Dobava in ročno vgrajevanje tamponskega materiala pod betonsko ploščo in dostopno pot, v debelini 20 cm"]
[null,"m3",5.6,null,{"$f":"SUM(C22*D22)","v":0}]
[]
[8,"Izdelava opaža roba ab plošče in čela ab zidov"]
[null,"m1",20,null,{"$f":"SUM(C25*D25)","v":0}]
[]
["8.1","Izdelava dvostranskega opaža zidov"]
[null,"m2",30,null,{"$f":"+C28*D28","v":0}]
[]
[9,"Dobava in ročno vgrajevanje vidnega betona v betonski temelj  talno ploščo, zidove in podložni beton. "]
[null,"m3",{"$f":"9*2*0.3+4","v":9.3999999999999986},null,{"$f":"D31*C31","v":0}]
[]
[10,"Dobava in ročno vgrajevanje armature v  ploščo ter zidove (palice + mreže)"]
[null,"kg",700,null,{"$f":"D34*C34","v":0}]
[]
[11,"Izdelava  finega planuma pred polaganjem asfalta"]
[null,"m2",20,null,{"$f":"SUM(C37*D37)","v":0}]
[]
[12,"Odrez asfalta, čiščenje in premaz robov, odvoz asfalta pooblaščenemu zbiralcu"]
[null,"m2",10,null,{"$f":"SUM(C40*D40)","v":0}]
[]
[13,"Dobava in polaganje bitumiziranega betona AC 11 surf B 50/70,  v debelini 6 cm "]
[null,"m2",10,null,{"$f":"SUM(C43*D43)","v":0}]
[]
[14,"Dobava in montaža vmesne varovalne ograje iz okrogle varovalne cevi fi 32 dolž. 0,85m in višine 0,85m pritrjene v ploščo."]
[null,"m1",8.5,null,{"$f":"SUM(C46*D46)","v":0}]
[]
[15,"Dobava in montaža varovalna pocinkane verige- lad. genovese 6,0  dolžine 3,0 m s pritrjevanjem"]
[null,"kos",1,null,{"$f":"SUM(C49*D49)","v":0}]
[]
[16,"Čiščenje grmovja s sekanjem in spravilom"]
[null,"m2",10,null,{"$f":"SUM(C52*D52)","v":0}]
[]
[17,"Posnetek terena in vnos v kataster"]
[null,"kos",1,null,{"$f":"SUM(C55*D55)","v":0}]
[]
[]
[null,"SKUPAJ",null,null,{"$f":"SUM(E4:E57)","v":0}]

{"sheet":"EKO9","index":8,"n_rows":66,"n_cols":5,"rows_kept":66,"cut":false,"hidden":false,"merged":[]}
[null,"EKOLOŠKI OTOK 9 - GABIONI"]
[null,null,"količina","cena za enoto","skupaj cena"]
[1,"Zakoličba parcelnih mej in priprava situacije"]
[null,"kos",1,null,{"$f":"SUM(C4*D4)","v":0}]
[]
[2,"Zakoličba objekta - postavitev profilov"]
[null,"kos",8,null,{"$f":"SUM(C7*D7)","v":0}]
[]
[3,"Široki izkop v terenu III. - IV. ktg., globine cca 50 cm "]
[null,"m3",24,null,{"$f":"SUM(C10*D10)","v":0}]
[]
[4,"Zasip objekta z materialom od izkopa"]
[null,"m3",10,null,{"$f":"SUM(C13*D13)","v":0}]
[]
[5,"Nakladanje odvišnega materiala in odvoz na deponijo, komplet z vsemi stroški deponiranja"]
[null,"m3",20,null,{"$f":"SUM(C16*D16)","v":0}]
[]
[6,"Ročno planiranje in utrjevanje dna širokega izkopa pred nasipom tamponskega materiala"]
[null,"m2",{"$f":"9*2","v":18},null,{"$f":"SUM(C19*D19)","v":0}]
[]
[7,"Dobava in ročno vgrajevanje tamponskega materiala pod betonsko ploščo in dostopno pot, v debelini 20 cm"]
[null,"m3",5.6,null,{"$f":"SUM(C22*D22)","v":0}]
[]
[8,"Izdelava opaža roba ab plošče in čela ab zidov"]
[null,"m1",15,null,{"$f":"SUM(C25*D25)","v":0}]
[9,"Dobava in ročno vgrajevanje vidnega betona v betonski temelj in talno ploščo in podložni beton. "]
[null,"m3",{"$f":"9*2*0.3","v":5.3999999999999995},null,{"$f":"D27*C27","v":0}]
[10,"Dobava in ročno vgrajevanje armature v  ploščo (palice + mreže)"]
[null,"kg",500,null,{"$f":"D29*C29","v":0}]
[]
[11,"Izdelava  finega planuma pred polaganjem asfalta"]
[null,"m2",20,null,{"$f":"SUM(C32*D32)","v":0}]
[]
[12,"Odrez asfalta, čiščenje in premaz robov, odvoz asfalta pooblaščenemu zbiralcu"]
[null,"m2",10,null,{"$f":"SUM(C35*D35)","v":0}]
[]
[13,"Dobava in polaganje bitumiziranega betona AC 11 surf B 50/70,  v debelini 6 cm "]
[null,"m2",5,null,{"$f":"SUM(C38*D38)","v":0}]
[]
[14,"Dobava in montaža vmesne varovalne ograje iz okrogle varovalne cevi fi 32 dolž. 0,85m in višine 0,85m pritrjene v ploščo."]
[null,"m1",14,null,{"$f":"SUM(C41*D41)","v":0}]
[]
[15,"Dobava in montaža varovalna pocinkane verige- lad. genovese 6,0  dolžine 6,0 m s pritrjevanjem"]
[null,"kos",2,null,{"$f":"SUM(C44*D44)","v":0}]
[]
[16,"Čiščenje grmovja s sekanjem in spravilom"]
[null,"m2",1,null,{"$f":"SUM(C47*D47)","v":0}]
[]
[17,"Posnetek terena in vnos v kataster"]
[null,"kos",1,null,{"$f":"SUM(C50*D50)","v":0}]
[]
[18,"Postavitev gabionov višine 1,5 m komplet s stebri, mrežo in polnjenjem s kamenjem"]
[null,"m",18,null,{"$f":"SUM(C53*D53)","v":0}]
[19,"Izdelava kanalizacije iz PE cevi SN4 fi 250 z obbetoniranjem."]
[null,"m1",20,null,{"$f":"SUM(C55*D55)","v":0}]
[]
[20,"Izdelava jaška iz betonske cevi fi 60 globine 1-1,5m mter LTŽ rešetke 400/400."]
[null,"kom",2,null,{"$f":"SUM(C58*D58)","v":0}]
[]
[21,"Izdelava jaška iz betonske cevi fi 60 globine 1-1,5m ter LTŽ pokrova fi 600,40 kN."]
[null,"kom",1,null,{"$f":"SUM(C61*D61)","v":0}]
[]
[22,"Zasip objekta z materialom od izkopa"]
[null,"m2",200,null,{"$f":"C64*D64","v":0}]
[]
[null,"SKUPAJ",null,null,{"$f":"SUM(E4:E64)","v":0}]

{"sheet":"OGRAJE","index":9,"n_rows":13,"n_cols":5,"rows_kept":13,"cut":false,"hidden":false,"merged":[]}
[null,"OGRAJE"]
[null,null,"količina","cena za enoto","skupaj cena"]
[1,"Dobava in vgrajevanje mreže Živex tip BEKAERT Nylofor 3D, višine  1030 mm, komplet s stebrički in ostalim pritrdilnim materialom"]
[null,"m1",20,null,{"$f":"SUM(C4*D4)","v":0}]
[]
[2,"Dobava in montaža vmesne varovalne ograje iz okrogle varovalne cevi fi 32 dolž. 0,85m in višine 0,85m pritrjene v ploščo."]
[null,"m1",40,null,{"$f":"SUM(C7*D7)","v":0}]
[]
[3,"Dobava in montaža varovalna pocinkane verige- lad. genovese 6,0  dolžine 3,0 m s pritrjevanjem"]
[null,"kos",10,null,{"$f":"SUM(C10*D10)","v":0}]
[]
[]
[null,"SKUPAJ",null,null,{"$f":"SUM(E4:E12)","v":0}]

{"sheet":"rekapitulacija","index":10,"n_rows":23,"n_cols":8,"rows_kept":23,"cut":false,"hidden":false,"merged":[[6,1,6,6],[7,1,7,6],[23,1,23,6],[24,1,24,6]]}
[]
[null,"OBČINA AJDOVŠČINA - EKOLOŠKI OTOKI 2019"]
[]
[null,"REKAPITULACIJA:"]
[]
[]
[1,"EKOLOŠKI OTOK 1",null,null,null,null,null,{"$f":"+'EKO1'!E83","v":0}]
[2,"EKOLOŠKI OTOK  2",null,null,null,null,null,{"$f":"+'EKO2'!E73","v":0}]
[3,"EKOLŠKI OTOK 3",null,null,null,null,null,{"$f":"+'EKO3'!E69","v":0}]
[4,"EKOLOŠKI OTOK 4",null,null,null,null,null,{"$f":"+'EKO4 '!E76","v":0}]
[5,"EKOLOŠKI OTOK 5",null,null,null,null,null,{"$f":"'EKO5'!E55","v":0}]
[6,"EKOLOŠKI OTOK 6",null,null,null,null,null,{"$f":"+'EKO 6'!E55","v":0}]
[7,"EKOLOŠKI OTOK 7",null,null,null,null,null,{"$f":"'EKO7'!E76","v":0}]
[8,"EKOLOŠKI OTOK 8",null,null,null,null,null,{"$f":"'EKO8'!E58","v":0}]
[9,"EKOLOŠKI OTOK 9",null,null,null,null,null,{"$f":"'EKO9'!E66","v":0}]
[10,"OGRAJE",null,null,null,null,null,{"$f":"+OGRAJE!E13","v":0}]
[]
[null,"SKUPAJ ",null,null,null,null,null,{"$f":"SUM(H7:H17)","v":0}]
[]
[null,"Nepredvidena dela",null,null,null,null,null,{"$f":"H18*0.1","v":0}]
[null,"SKUPAJ  z nepredvidenimi deli",null,null,null,null,null,{"$f":"SUM(H18:H20)","v":0}]
[]
[null,"Opomba - pri vseh popisnih postavkah kjer je opisan dobavitelj, lahko ponudnik predvidi drugega dobavitelja s primerljivim materialom."]